[Event "*** SCC Grand Prix: Titled Tuesday Blitz"]
[Site "Chess.com"]
[Date "2020.09.08"]
[Round "8"]
[White "KatarinaOstojic"]
[Black "Shuvalov"]
[Result "1/2-1/2"]
[WhiteElo "2337"]
[BlackElo "2440"]
[TimeControl "180+1"]
[EndTime "11:38:33 PDT"]
[Termination "Game drawn - insufficient material"]

1. d4 {[%clk 0:03:00.9]} 1... d5 {[%clk 0:02:52.4]} 2. Nf3 {[%clk 0:02:59.9]}
2... Nf6 {[%clk 0:02:50.8]} 3. c4 {[%clk 0:03:00]} 3... c6 {[%clk 0:02:50.5]} 4.
Nc3 {[%clk 0:03:00.4]} 4... dxc4 {[%clk 0:02:49.3]} 5. a4 {[%clk 0:02:59.6]}
5... Bf5 {[%clk 0:02:46.7]} 6. e3 {[%clk 0:03:00.1]} 6... e6 {[%clk 0:02:45.9]}
7. Bxc4 {[%clk 0:03:00.7]} 7... Bb4 {[%clk 0:02:43.1]} 8. O-O {[%clk 0:03:01.3]}
8... O-O {[%clk 0:02:42.6]} 9. Ne5 {[%clk 0:03:01]} 9... Nbd7 {[%clk 0:02:37.1]}
10. Nxd7 {[%clk 0:03:00.5]} 10... Nxd7 {[%clk 0:02:31.4]} 11. h3 {[%clk
0:03:00.7]} 11... Bg6 {[%clk 0:02:28.4]} 12. Qf3 {[%clk 0:02:59.8]} 12... c5
{[%clk 0:02:10.4]} 13. Qxb7 {[%clk 0:02:55.6]} 13... a5 {[%clk 0:02:06.5]} 14.
Qf3 {[%clk 0:02:51.1]} 14... cxd4 {[%clk 0:02:04.7]} 15. exd4 {[%clk 0:02:50.5]}
15... Nb6 {[%clk 0:02:04.8]} 16. Bb5 {[%clk 0:02:42.2]} 16... Qxd4 {[%clk
0:01:45.8]} 17. Be3 {[%clk 0:02:41.8]} 17... Qd6 {[%clk 0:01:45.3]} 18. Rfd1
{[%clk 0:02:36.5]} 18... Nd5 {[%clk 0:01:42.4]} 19. Nxd5 {[%clk 0:02:33.9]}
19... exd5 {[%clk 0:01:43.3]} 20. Rxd5 {[%clk 0:02:22.5]} 20... Qe6 {[%clk
0:01:36.4]} 21. Rdd1 {[%clk 0:02:14.9]} 21... Rfd8 {[%clk 0:01:32]} 22. Rac1
{[%clk 0:02:11.6]} 22... h6 {[%clk 0:01:29.1]} 23. Rxd8+ {[%clk 0:02:05.9]}
23... Rxd8 {[%clk 0:01:29.1]} 24. Rd1 {[%clk 0:02:06.8]} 24... Rxd1+ {[%clk
0:01:26.1]} 25. Qxd1 {[%clk 0:02:07.7]} 25... Qf6 {[%clk 0:01:15.7]} 26. Qd4
{[%clk 0:01:57.1]} 26... Qe7 {[%clk 0:01:11.9]} 27. Bd2 {[%clk 0:01:42.8]} 27...
Bc5 {[%clk 0:00:55.5]} 28. Qd7 {[%clk 0:01:39.4]} 28... Qe5 {[%clk 0:00:45.6]}
29. Qe8+ {[%clk 0:01:26.2]} 29... Qxe8 {[%clk 0:00:44.7]} 30. Bxe8 {[%clk
0:01:27.1]} 30... Bb6 {[%clk 0:00:45.2]} 31. b4 {[%clk 0:01:24.9]} 31... axb4
{[%clk 0:00:45.1]} 32. Bxb4 {[%clk 0:01:25.8]} 32... Bd3 {[%clk 0:00:41.1]} 33.
a5 {[%clk 0:01:23.7]} 33... Ba7 {[%clk 0:00:40.3]} 34. g3 {[%clk 0:01:23.5]}
34... f5 {[%clk 0:00:37.4]} 35. Kg2 {[%clk 0:01:19.3]} 35... Be4+ {[%clk
0:00:36.4]} 36. Kf1 {[%clk 0:01:16.9]} 36... Bd3+ {[%clk 0:00:36.3]} 37. Ke1
{[%clk 0:01:17.1]} 37... g5 {[%clk 0:00:35.8]} 38. Kd2 {[%clk 0:01:09.5]} 38...
Ba6 {[%clk 0:00:34.5]} 39. f3 {[%clk 0:01:03.3]} 39... Bf2 {[%clk 0:00:32.4]}
40. Bd6 {[%clk 0:00:55.2]} 40... Bb7 {[%clk 0:00:30.4]} 41. Ke2 {[%clk
0:00:54.4]} 41... Ba7 {[%clk 0:00:28.9]} 42. Bb5 {[%clk 0:00:54.9]} 42... Kf7
{[%clk 0:00:27.3]} 43. a6 {[%clk 0:00:55.3]} 43... Bd5 {[%clk 0:00:27.6]} 44. f4
{[%clk 0:00:52.7]} 44... g4 {[%clk 0:00:26.6]} 45. hxg4 {[%clk 0:00:52.1]} 45...
fxg4 {[%clk 0:00:27.5]} 46. Bd7 {[%clk 0:00:41.9]} 46... h5 {[%clk 0:00:26.6]}
47. Bb5 {[%clk 0:00:38.1]} 47... Kf6 {[%clk 0:00:25.3]} 48. Be5+ {[%clk
0:00:37.4]} 48... Kf7 {[%clk 0:00:21.8]} 49. Bd3 {[%clk 0:00:36.6]} 49... Bf3+
{[%clk 0:00:21.7]} 50. Kf1 {[%clk 0:00:36.7]} 50... Bd5 {[%clk 0:00:20.4]} 51.
Be2 {[%clk 0:00:34.8]} 51... Be4 {[%clk 0:00:20.2]} 52. Bc4+ {[%clk 0:00:34.1]}
52... Kg6 {[%clk 0:00:20.6]} 53. Bb5 {[%clk 0:00:33.9]} 53... Bd5 {[%clk
0:00:19.6]} 54. Be8+ {[%clk 0:00:33.5]} 54... Kh6 {[%clk 0:00:20]} 55. Bf6
{[%clk 0:00:33.7]} 55... Be4 {[%clk 0:00:19.4]} 56. Bg5+ {[%clk 0:00:32.9]}
56... Kh7 {[%clk 0:00:19.4]} 57. Bxh5 {[%clk 0:00:33.8]} 57... Bf3 {[%clk
0:00:19.9]} 58. Be8 {[%clk 0:00:32.7]} 58... Kg7 {[%clk 0:00:19]} 59. Bb5 {[%clk
0:00:33.1]} 59... Bd5 {[%clk 0:00:19]} 60. f5 {[%clk 0:00:32.4]} 60... Kf7
{[%clk 0:00:18.8]} 61. Bf4 {[%clk 0:00:32.3]} 61... Be4 {[%clk 0:00:18.8]} 62.
Ke2 {[%clk 0:00:31.1]} 62... Bxf5 {[%clk 0:00:18.4]} 63. Kd2 {[%clk 0:00:30.6]}
63... Be4 {[%clk 0:00:18.6]} 64. Kc3 {[%clk 0:00:30.4]} 64... Ke6 {[%clk
0:00:18.3]} 65. Kc4 {[%clk 0:00:30.7]} 65... Bd5+ {[%clk 0:00:17.7]} 66. Kd3
{[%clk 0:00:30.6]} 66... Bf3 {[%clk 0:00:17.5]} 67. Bc4+ {[%clk 0:00:30.7]}
67... Kf5 {[%clk 0:00:16.2]} 68. Bf7 {[%clk 0:00:30.3]} 68... Be4+ {[%clk
0:00:15.8]} 69. Kc4 {[%clk 0:00:29.1]} 69... Bg2 {[%clk 0:00:16.5]} 70. Kb5
{[%clk 0:00:27.1]} 70... Be4 {[%clk 0:00:15.7]} 71. Be8 {[%clk 0:00:26.6]} 71...
Ke6 {[%clk 0:00:15.3]} 72. Bc6 {[%clk 0:00:26.1]} 72... Bd3+ {[%clk 0:00:15.7]}
73. Ka5 {[%clk 0:00:25.9]} 73... Be2 {[%clk 0:00:15.3]} 74. Bb7 {[%clk
0:00:26.4]} 74... Kd7 {[%clk 0:00:14.9]} 75. Kb4 {[%clk 0:00:26]} 75... Bf1
{[%clk 0:00:14.6]} 76. Kc3 {[%clk 0:00:25.9]} 76... Be2 {[%clk 0:00:14.8]} 77.
Kd2 {[%clk 0:00:26.1]} 77... Bf3 {[%clk 0:00:15.1]} 78. Bxf3 {[%clk 0:00:21.2]}
78... gxf3 {[%clk 0:00:16]} 79. Be3 {[%clk 0:00:21.5]} 79... Bb8 {[%clk
0:00:15.8]} 80. Bf2 {[%clk 0:00:21.8]} 80... Kc6 {[%clk 0:00:14.3]} 81. Ke3
{[%clk 0:00:22.2]} 81... Kb6 {[%clk 0:00:12.4]} 82. Kxf3+ {[%clk 0:00:21.6]}
82... Kxa6 {[%clk 0:00:13.3]} 83. g4 {[%clk 0:00:22.1]} 83... Be5 {[%clk
0:00:13.1]} 84. Ke4 {[%clk 0:00:22.3]} 84... Bg7 {[%clk 0:00:13]} 85. Kf5 {[%clk
0:00:23.2]} 85... Kb7 {[%clk 0:00:13.1]} 86. Be3 {[%clk 0:00:23.2]} 86... Kc6
{[%clk 0:00:13.3]} 87. Bf4 {[%clk 0:00:23.8]} 87... Kd7 {[%clk 0:00:13.7]} 88.
g5 {[%clk 0:00:24.7]} 88... Ke8 {[%clk 0:00:13.6]} 89. Kg6 {[%clk 0:00:25.6]}
89... Kf8 {[%clk 0:00:13.5]} 90. Bd6+ {[%clk 0:00:25]} 90... Kg8 {[%clk
0:00:13.7]} 91. Be7 {[%clk 0:00:25.3]} 91... Bc3 {[%clk 0:00:14.1]} 92. Bf6
{[%clk 0:00:25.3]} 92... Bd2 {[%clk 0:00:14.5]} 93. Kf5 {[%clk 0:00:23.8]} 93...
Bxg5 {[%clk 0:00:15.4]} 1/2-1/2

[Event "*** SCC Grand Prix: Titled Tuesday Blitz"]
[Site "Chess.com"]
[Date "2020.09.08"]
[Round "8"]
[White "Orest_Vovk"]
[Black "pavlitas17"]
[Result "1-0"]
[WhiteElo "2494"]
[BlackElo "2364"]
[TimeControl "180+1"]
[EndTime "11:38:53 PDT"]
[Termination "Orest_Vovk won by checkmate"]

1. Nf3 {[%clk 0:03:00.9]} 1... g6 {[%clk 0:02:58.7]} 2. h3 {[%clk 0:03:00.4]}
2... Bg7 {[%clk 0:02:58.6]} 3. d4 {[%clk 0:02:59.2]} 3... Nf6 {[%clk 0:02:58.5]}
4. Nh2 {[%clk 0:02:59.1]} 4... O-O {[%clk 0:02:58.4]} 5. Ng4 {[%clk 0:02:58.8]}
5... d5 {[%clk 0:02:58.1]} 6. Nxf6+ {[%clk 0:02:48.4]} 6... Bxf6 {[%clk
0:02:56.3]} 7. Bh6 {[%clk 0:02:48.2]} 7... Re8 {[%clk 0:02:53.7]} 8. e3 {[%clk
0:02:40.2]} 8... e5 {[%clk 0:02:53.8]} 9. c3 {[%clk 0:02:34.7]} 9... exd4 {[%clk
0:02:53.4]} 10. cxd4 {[%clk 0:02:32.6]} 10... c5 {[%clk 0:02:53.8]} 11. dxc5
{[%clk 0:02:23.5]} 11... d4 {[%clk 0:02:45.6]} 12. Be2 {[%clk 0:02:03.1]} 12...
Qa5+ {[%clk 0:02:43.3]} 13. Nd2 {[%clk 0:01:58.9]} 13... dxe3 {[%clk 0:02:42.5]}
14. Bxe3 {[%clk 0:01:54.3]} 14... Bxb2 {[%clk 0:02:42.4]} 15. O-O {[%clk
0:01:17.8]} 15... Bxa1 {[%clk 0:02:19.9]} 16. Qxa1 {[%clk 0:01:17.2]} 16... Rxe3
{[%clk 0:02:19.2]} 17. Nc4 {[%clk 0:01:17.3]} 17... Qxc5 {[%clk 0:02:09.1]} 18.
Nxe3 {[%clk 0:01:12.6]} 18... Be6 {[%clk 0:02:04.3]} 19. Rc1 {[%clk 0:01:05.5]}
19... Qe7 {[%clk 0:02:02.3]} 20. Bf3 {[%clk 0:00:54.5]} 20... Nc6 {[%clk
0:02:01.3]} 21. Bxc6 {[%clk 0:00:53]} 21... bxc6 {[%clk 0:02:01.3]} 22. Rxc6
{[%clk 0:00:53.9]} 22... Rd8 {[%clk 0:01:59.1]} 23. Qe5 {[%clk 0:00:51.7]} 23...
Qb7 {[%clk 0:01:52.9]} 24. Rc7 {[%clk 0:00:47.3]} 24... Qb1+ {[%clk 0:01:52.6]}
25. Kh2 {[%clk 0:00:46.8]} 25... Qxa2 {[%clk 0:01:48.8]} 26. Qf6 {[%clk
0:00:44.2]} 26... Qd2 {[%clk 0:01:45.6]} 27. Rxa7 {[%clk 0:00:32.1]} 27... Qd6+
{[%clk 0:01:43.8]} 28. f4 {[%clk 0:00:26.5]} 28... Qb6 {[%clk 0:01:31.7]} 29.
Ng4 {[%clk 0:00:21.9]} 29... Qxa7 {[%clk 0:01:09.2]} 30. Qxd8+ {[%clk
0:00:21.7]} 30... Kg7 {[%clk 0:01:08.7]} 31. Nf6 {[%clk 0:00:21.7]} 31... Qa1
{[%clk 0:00:29.1]} 32. Ne8+ {[%clk 0:00:19.7]} 32... Kf8 {[%clk 0:00:28.9]} 33.
Nc7+ {[%clk 0:00:18.4]} 33... Kg7 {[%clk 0:00:27.6]} 34. Nxe6+ {[%clk
0:00:18.4]} 34... fxe6 {[%clk 0:00:27.8]} 35. Qe7+ {[%clk 0:00:18.6]} 35... Kg8
{[%clk 0:00:28.2]} 36. Qxe6+ {[%clk 0:00:19.2]} 36... Kf8 {[%clk 0:00:24.9]} 37.
Qd6+ {[%clk 0:00:18.2]} 37... Kg8 {[%clk 0:00:24.4]} 38. Qd5+ {[%clk 0:00:17.6]}
38... Kf8 {[%clk 0:00:22.3]} 39. Qd6+ {[%clk 0:00:17.2]} 39... Kg8 {[%clk
0:00:21.9]} 40. Qb8+ {[%clk 0:00:17.3]} 40... Kf7 {[%clk 0:00:21]} 41. Qc7+
{[%clk 0:00:17]} 41... Kg8 {[%clk 0:00:20.4]} 42. Qc4+ {[%clk 0:00:17.1]} 42...
Kg7 {[%clk 0:00:19.8]} 43. Qe4 {[%clk 0:00:16.7]} 43... Qa7 {[%clk 0:00:15.1]}
44. Qe5+ {[%clk 0:00:16.2]} 44... Kg8 {[%clk 0:00:15.4]} 45. Qe6+ {[%clk
0:00:15.9]} 45... Kg7 {[%clk 0:00:15.8]} 46. Qd5 {[%clk 0:00:13.6]} 46... Qf7
{[%clk 0:00:13.6]} 47. Qe5+ {[%clk 0:00:13.2]} 47... Kg8 {[%clk 0:00:13.5]} 48.
Qd4 {[%clk 0:00:11.8]} 48... Qf5 {[%clk 0:00:12.6]} 49. Qe5 {[%clk 0:00:11.3]}
49... Qc8 {[%clk 0:00:11.1]} 50. Kg3 {[%clk 0:00:10.8]} 50... Qc1 {[%clk
0:00:09.7]} 51. Qe6+ {[%clk 0:00:10]} 51... Kg7 {[%clk 0:00:09.9]} 52. Qe5+
{[%clk 0:00:09.3]} 52... Kg8 {[%clk 0:00:10.4]} 53. Qe2 {[%clk 0:00:09.9]} 53...
Qc3+ {[%clk 0:00:10]} 54. Qf3 {[%clk 0:00:10.2]} 54... Qf6 {[%clk 0:00:08.9]}
55. Kh2 {[%clk 0:00:09.2]} 55... Qf5 {[%clk 0:00:08.3]} 56. Qb3+ {[%clk
0:00:08.4]} 56... Kg7 {[%clk 0:00:07.7]} 57. Qe3 {[%clk 0:00:09.3]} 57... Qb1
{[%clk 0:00:06.4]} 58. Qe7+ {[%clk 0:00:08.2]} 58... Kg8 {[%clk 0:00:06.4]} 59.
h4 {[%clk 0:00:08]} 59... Qc1 {[%clk 0:00:04.8]} 60. Qe6+ {[%clk 0:00:07.2]}
60... Kg7 {[%clk 0:00:04.5]} 61. Qe5+ {[%clk 0:00:07]} 61... Kg8 {[%clk
0:00:04.8]} 62. h5 {[%clk 0:00:07.6]} 62... gxh5 {[%clk 0:00:05]} 63. Qg5+
{[%clk 0:00:06.4]} 63... Kh8 {[%clk 0:00:05.3]} 64. Qf6+ {[%clk 0:00:06]} 64...
Kg8 {[%clk 0:00:05.4]} 65. Qe6+ {[%clk 0:00:05.8]} 65... Kg7 {[%clk 0:00:05.5]}
66. Qe5+ {[%clk 0:00:06.1]} 66... Kg8 {[%clk 0:00:05.9]} 67. f5 {[%clk
0:00:06.5]} 67... Qg5 {[%clk 0:00:04.4]} 68. Qg3 {[%clk 0:00:03.5]} 68... Qxg3+
{[%clk 0:00:03.6]} 69. Kxg3 {[%clk 0:00:04.4]} 69... Kg7 {[%clk 0:00:04.2]} 70.
Kf4 {[%clk 0:00:03.9]} 70... h4 {[%clk 0:00:03.8]} 71. Kg5 {[%clk 0:00:03.7]}
71... Kf7 {[%clk 0:00:04]} 72. Kxh4 {[%clk 0:00:03.9]} 72... Kf6 {[%clk
0:00:03.8]} 73. Kg4 {[%clk 0:00:04.5]} 73... h6 {[%clk 0:00:02.9]} 74. Kf4
{[%clk 0:00:04.4]} 74... h5 {[%clk 0:00:03.2]} 75. g3 {[%clk 0:00:04.8]} 75...
Kf7 {[%clk 0:00:02.8]} 76. Kg5 {[%clk 0:00:05.1]} 76... Kg7 {[%clk 0:00:03.4]}
77. Kxh5 {[%clk 0:00:05.4]} 77... Kf6 {[%clk 0:00:04.3]} 78. Kg4 {[%clk
0:00:06.3]} 78... Kf7 {[%clk 0:00:04.6]} 79. Kf4 {[%clk 0:00:07.2]} 79... Kf6
{[%clk 0:00:05.5]} 80. g4 {[%clk 0:00:08.1]} 80... Kf7 {[%clk 0:00:06.4]} 81.
Kg5 {[%clk 0:00:08.5]} 81... Kg7 {[%clk 0:00:07.3]} 82. f6+ {[%clk 0:00:09.3]}
82... Kf7 {[%clk 0:00:08.2]} 83. Kf5 {[%clk 0:00:10.2]} 83... Kf8 {[%clk
0:00:09.1]} 84. g5 {[%clk 0:00:11.1]} 84... Kf7 {[%clk 0:00:10]} 85. g6+ {[%clk
0:00:11.3]} 85... Kf8 {[%clk 0:00:10.9]} 86. Ke6 {[%clk 0:00:12]} 86... Kg8
{[%clk 0:00:11.1]} 87. f7+ {[%clk 0:00:11.7]} 87... Kh8 {[%clk 0:00:11.9]} 88.
g7+ {[%clk 0:00:11.6]} 88... Kh7 {[%clk 0:00:10.7]} 89. g8=Q+ {[%clk 0:00:11]}
89... Kh6 {[%clk 0:00:10.8]} 90. f8=Q+ {[%clk 0:00:11.2]} 90... Kh5 {[%clk
0:00:09.5]} 91. Qh7+ {[%clk 0:00:11.4]} 91... Kg4 {[%clk 0:00:08.9]} 92. Qg6+
{[%clk 0:00:11.5]} 92... Kh3 {[%clk 0:00:08.5]} 93. Qh8# {[%clk 0:00:10.5]} 1-0

[Event "*** SCC Grand Prix: Titled Tuesday Blitz"]
[Site "Chess.com"]
[Date "2020.09.08"]
[Round "8"]
[White "Sanyura"]
[Black "Maghalashvili"]
[Result "1-0"]
[WhiteElo "2575"]
[BlackElo "2728"]
[TimeControl "180+1"]
[EndTime "11:39:26 PDT"]
[Termination "Sanyura won on time"]

1. e4 {[%clk 0:02:50]} 1... c5 {[%clk 0:02:44.5]} 2. Nf3 {[%clk 0:02:49.5]} 2...
d6 {[%clk 0:02:25.9]} 3. d4 {[%clk 0:02:49.2]} 3... cxd4 {[%clk 0:02:25.5]} 4.
Nxd4 {[%clk 0:02:50.1]} 4... Nf6 {[%clk 0:02:25.1]} 5. Nc3 {[%clk 0:02:49.9]}
5... a6 {[%clk 0:02:26]} 6. g3 {[%clk 0:02:49.2]} 6... e5 {[%clk 0:02:25.5]} 7.
Nb3 {[%clk 0:02:49.4]} 7... Be7 {[%clk 0:02:25.5]} 8. Bg2 {[%clk 0:02:49.5]}
8... O-O {[%clk 0:02:25.4]} 9. O-O {[%clk 0:02:49.7]} 9... Nbd7 {[%clk
0:02:24.7]} 10. a4 {[%clk 0:02:48.5]} 10... b6 {[%clk 0:02:25]} 11. Re1 {[%clk
0:02:47.6]} 11... Bb7 {[%clk 0:02:25.5]} 12. Nd2 {[%clk 0:02:44.2]} 12... Rc8
{[%clk 0:02:25.1]} 13. Nf1 {[%clk 0:02:43.4]} 13... Nc5 {[%clk 0:02:22.4]} 14.
Bg5 {[%clk 0:02:41.2]} 14... Nfd7 {[%clk 0:02:02.9]} 15. Bxe7 {[%clk 0:02:39.6]}
15... Qxe7 {[%clk 0:02:03.8]} 16. Ne3 {[%clk 0:02:39.9]} 16... g6 {[%clk
0:02:01.5]} 17. Ncd5 {[%clk 0:02:38.6]} 17... Qd8 {[%clk 0:01:58.5]} 18. Nc4
{[%clk 0:02:01.5]} 18... Bxd5 {[%clk 0:01:31.5]} 19. Qxd5 {[%clk 0:02:00.7]}
19... Nf6 {[%clk 0:01:19.3]} 20. Qxd6 {[%clk 0:01:59.6]} 20... Ncxe4 {[%clk
0:01:13.1]} 21. Qxd8 {[%clk 0:01:56.7]} 21... Rfxd8 {[%clk 0:01:11.7]} 22. Nxb6
{[%clk 0:01:56.1]} 22... Rxc2 {[%clk 0:00:53.1]} 23. Bxe4 {[%clk 0:01:54.7]}
23... Rxb2 {[%clk 0:00:53.2]} 24. a5 {[%clk 0:01:51.5]} 24... Ng4 {[%clk
0:00:40.8]} 25. Nc4 {[%clk 0:01:46.7]} 25... Rb4 {[%clk 0:00:36.6]} 26. Rac1
{[%clk 0:01:45.9]} 26... Rd4 {[%clk 0:00:34.9]} 27. h3 {[%clk 0:01:24]} 27...
Nf6 {[%clk 0:00:31.9]} 28. Nxe5 {[%clk 0:01:23.7]} 28... Rxe4 {[%clk 0:00:30.9]}
29. Rc8+ {[%clk 0:01:22]} 29... Kg7 {[%clk 0:00:30.4]} 30. Rxe4 {[%clk
0:01:22.6]} 30... Rxe4 {[%clk 0:00:30.6]} 31. Nd3 {[%clk 0:01:20.4]} 31... Ra4
{[%clk 0:00:27.8]} 32. Rc5 {[%clk 0:01:16.1]} 32... Ne4 {[%clk 0:00:26.8]} 33.
Re5 {[%clk 0:01:14.4]} 33... Kf6 {[%clk 0:00:24.6]} 34. Rd5 {[%clk 0:01:06.1]}
34... Nc3 {[%clk 0:00:21.3]} 35. Rd6+ {[%clk 0:01:05.1]} 35... Ke7 {[%clk
0:00:18.5]} 36. Rxa6 {[%clk 0:01:06]} 36... Ne4 {[%clk 0:00:14.1]} 37. Ra7+
{[%clk 0:01:03.3]} 37... Kf6 {[%clk 0:00:14.4]} 38. a6 {[%clk 0:01:01]} 38...
Ra3 {[%clk 0:00:13.6]} 39. Nf4 {[%clk 0:01:00.7]} 39... Ra2 {[%clk 0:00:12.9]}
40. Nd5+ {[%clk 0:00:59.7]} 40... Kg7 {[%clk 0:00:12]} 41. Nb4 {[%clk
0:00:50.9]} 41... Rb2 {[%clk 0:00:08.6]} 42. Nc6 {[%clk 0:00:42]} 42... Nxf2
{[%clk 0:00:06.7]} 43. Rb7 {[%clk 0:00:34.5]} 43... Nxh3+ {[%clk 0:00:06.1]} 44.
Kf1 {[%clk 0:00:34.4]} 44... Ra2 {[%clk 0:00:07]} 45. a7 {[%clk 0:00:34.2]}
45... Ng5 {[%clk 0:00:07.9]} 46. Rb8 {[%clk 0:00:34.3]} 46... Ne4 {[%clk
0:00:08]} 47. g4 {[%clk 0:00:28.7]} 47... Nf6 {[%clk 0:00:08.3]} 48. g5 {[%clk
0:00:23.8]} 48... Ne4 {[%clk 0:00:08.1]} 49. Rb5 {[%clk 0:00:20.6]} 49... Ra6
{[%clk 0:00:03.6]} 50. Ra5 {[%clk 0:00:19.6]} 50... Rxa7 {[%clk 0:00:02.2]} 51.
Rxa7 {[%clk 0:00:19.5]} 51... Nxg5 {[%clk 0:00:01.6]} 52. Ne5 {[%clk 0:00:20.1]}
52... h5 {[%clk 0:00:02.1]} 53. Kf2 {[%clk 0:00:19.9]} 53... Kf6 {[%clk
0:00:03]} 54. Nf3 {[%clk 0:00:19.3]} 54... Ne6 {[%clk 0:00:03.8]} 55. Ra6 {[%clk
0:00:18.6]} 55... Kf5 {[%clk 0:00:02.9]} 56. Ne1 {[%clk 0:00:17.4]} 56... g5
{[%clk 0:00:03.3]} 57. Ng2 {[%clk 0:00:18.3]} 57... h4 {[%clk 0:00:03.2]} 58.
Ne3+ {[%clk 0:00:18.7]} 58... Kg6 {[%clk 0:00:03.5]} 59. Ra5 {[%clk 0:00:18.8]}
59... f6 {[%clk 0:00:03.5]} 60. Ra6 {[%clk 0:00:18.3]} 60... Nf4 {[%clk
0:00:03.4]} 61. Ng4 {[%clk 0:00:18.6]} 61... Nh5 {[%clk 0:00:03.9]} 62. Kf3
{[%clk 0:00:18.1]} 62... Kf5 {[%clk 0:00:04.8]} 63. Ra5+ {[%clk 0:00:17.9]}
63... Kg6 {[%clk 0:00:05.1]} 64. Ne3 {[%clk 0:00:18.4]} 64... Nf4 {[%clk
0:00:05]} 65. Kg4 {[%clk 0:00:18.9]} 65... Nd3 {[%clk 0:00:03.7]} 66. Kf3 {[%clk
0:00:13]} 66... Ne5+ {[%clk 0:00:03.7]} 67. Ke4 {[%clk 0:00:13.3]} 67... h3
{[%clk 0:00:04.2]} 68. Nf5 {[%clk 0:00:09.9]} 68... g4 {[%clk 0:00:03.9]} 69.
Ra7 {[%clk 0:00:09.2]} 69... Nf3 {[%clk 0:00:03.9]} 70. Rg7+ {[%clk 0:00:09.2]}
70... Kh5 {[%clk 0:00:04.3]} 71. Kf4 {[%clk 0:00:09.4]} 71... Ne5 {[%clk
0:00:04.6]} 72. Rh7+ {[%clk 0:00:07.3]} 72... Kg6 {[%clk 0:00:04.1]} 73. Rh6+
{[%clk 0:00:07.7]} 73... Kf7 {[%clk 0:00:04.3]} 74. Ng3 {[%clk 0:00:04.5]} 74...
Kg7 {[%clk 0:00:04.3]} 75. Rh5 {[%clk 0:00:04.3]} 75... Kg6 {[%clk 0:00:04.5]}
76. Rf5 {[%clk 0:00:04.7]} 76... h2 {[%clk 0:00:02.2]} 77. Rh5 {[%clk
0:00:04.8]} 77... Kg7 {[%clk 0:00:02.4]} 78. Rxh2 {[%clk 0:00:04.8]} 78... Kg6
{[%clk 0:00:03.3]} 79. Rh4 {[%clk 0:00:04.4]} 79... Kg7 {[%clk 0:00:03.7]} 80.
Nf5+ {[%clk 0:00:04.6]} 80... Kg6 {[%clk 0:00:04.6]} 81. Rh6+ {[%clk 0:00:04.7]}
81... Kf7 {[%clk 0:00:04.4]} 82. Rh1 {[%clk 0:00:05.6]} 82... Kg6 {[%clk
0:00:04.3]} 83. Ne3 {[%clk 0:00:06]} 83... Nd3+ {[%clk 0:00:03.8]} 84. Kxg4
{[%clk 0:00:05.8]} 84... Ne5+ {[%clk 0:00:04.7]} 85. Kf4 {[%clk 0:00:06]} 85...
Nd3+ {[%clk 0:00:05.6]} 86. Kg3 {[%clk 0:00:06.3]} 86... Nc5 {[%clk 0:00:05.2]}
87. Rg1 {[%clk 0:00:06.3]} 87... Kf7 {[%clk 0:00:04.7]} 88. Kf4 {[%clk
0:00:06.7]} 88... Ne6+ {[%clk 0:00:03.7]} 89. Kf5 {[%clk 0:00:06.6]} 89... Nd4+
{[%clk 0:00:03.9]} 90. Ke4 {[%clk 0:00:07.1]} 90... Ne6 {[%clk 0:00:04.8]} 91.
Nf5 {[%clk 0:00:07.6]} 91... Ng5+ {[%clk 0:00:04.7]} 92. Kd5 {[%clk 0:00:08.1]}
92... Ne6 {[%clk 0:00:05]} 93. Nd6+ {[%clk 0:00:06.9]} 93... Ke7 {[%clk
0:00:04.3]} 94. Re1 {[%clk 0:00:07.5]} 1-0

[Event "*** SCC Grand Prix: Titled Tuesday Blitz"]
[Site "Chess.com"]
[Date "2020.09.08"]
[Round "9"]
[White "Rodalquilar"]
[Black "pedromartinez91"]
[Result "1-0"]
[WhiteElo "2662"]
[BlackElo "2495"]
[TimeControl "180+1"]
[EndTime "11:41:19 PDT"]
[Termination "Rodalquilar won by resignation"]

1. d4 {[%clk 0:03:00.9]} 1... e6 {[%clk 0:02:58.2]} 2. e4 {[%clk 0:03:00.5]}
2... Nf6 {[%clk 0:02:59.1]} 3. e5 {[%clk 0:02:59.1]} 3... Nd5 {[%clk 0:02:59.5]}
4. c4 {[%clk 0:02:59.3]} 4... Nb6 {[%clk 0:02:59.8]} 5. Nc3 {[%clk 0:02:59.1]}
5... d6 {[%clk 0:03:00.1]} 6. Nf3 {[%clk 0:02:53.2]} 6... dxe5 {[%clk
0:02:59.5]} 7. Nxe5 {[%clk 0:02:53.6]} 7... N8d7 {[%clk 0:03:00.4]} 8. Bf4
{[%clk 0:02:51.5]} 8... Nxe5 {[%clk 0:02:55.7]} 9. Bxe5 {[%clk 0:02:52]} 9...
Nd7 {[%clk 0:02:43.8]} 10. Bg3 {[%clk 0:02:52]} 10... Bb4 {[%clk 0:02:38.1]} 11.
Bd3 {[%clk 0:02:49.7]} 11... Qf6 {[%clk 0:02:35.6]} 12. O-O {[%clk 0:02:45.6]}
12... Qxd4 {[%clk 0:02:35.5]} 13. Nb5 {[%clk 0:02:45.2]} 13... Qxb2 {[%clk
0:02:29.5]} 14. Rb1 {[%clk 0:02:35.5]} 1-0

[Event "*** SCC Grand Prix: Titled Tuesday Blitz"]
[Site "Chess.com"]
[Date "2020.09.08"]
[Round "9"]
[White "Kazan28"]
[Black "ChelsieMonica"]
[Result "1-0"]
[WhiteElo "2276"]
[BlackElo "2419"]
[TimeControl "180+1"]
[EndTime "11:42:21 PDT"]
[Termination "Kazan28 won by resignation"]

1. Nf3 {[%clk 0:03:00.9]} 1... Nf6 {[%clk 0:02:59.6]} 2. g3 {[%clk 0:03:00.8]}
2... e6 {[%clk 0:03:00.5]} 3. Bg2 {[%clk 0:03:00]} 3... d5 {[%clk 0:03:01.4]} 4.
O-O {[%clk 0:03:00.9]} 4... Be7 {[%clk 0:03:01.9]} 5. d3 {[%clk 0:03:01.8]} 5...
O-O {[%clk 0:03:02.7]} 6. e4 {[%clk 0:03:01.9]} 6... c5 {[%clk 0:03:03.6]} 7.
Qe2 {[%clk 0:02:59.4]} 7... Nc6 {[%clk 0:03:02.5]} 8. h4 {[%clk 0:02:54.4]} 8...
b5 {[%clk 0:03:01.5]} 9. e5 {[%clk 0:02:52.5]} 9... Nd7 {[%clk 0:02:58.5]} 10.
h5 {[%clk 0:02:52.5]} 10... a5 {[%clk 0:02:53.8]} 11. h6 {[%clk 0:02:52.5]}
11... g6 {[%clk 0:02:53.2]} 12. Re1 {[%clk 0:02:50.9]} 12... a4 {[%clk 0:02:50]}
13. a3 {[%clk 0:02:51.3]} 13... b4 {[%clk 0:02:49.5]} 14. Nbd2 {[%clk
0:02:51.4]} 14... bxa3 {[%clk 0:02:46.6]} 15. bxa3 {[%clk 0:02:52.3]} 15... Ba6
{[%clk 0:02:45.4]} 16. Nf1 {[%clk 0:02:52.2]} 16... Nd4 {[%clk 0:02:42.7]} 17.
Nxd4 {[%clk 0:02:50.9]} 17... cxd4 {[%clk 0:02:43.6]} 18. Nh2 {[%clk 0:02:50.9]}
18... Bg5 {[%clk 0:02:37.9]} 19. Ng4 {[%clk 0:02:47.4]} 19... Bxc1 {[%clk
0:02:35.6]} 20. Raxc1 {[%clk 0:02:48.3]} 20... Rb8 {[%clk 0:02:33.9]} 21. Qd2
{[%clk 0:02:45.4]} 21... Qe7 {[%clk 0:02:28.4]} 22. Qf4 {[%clk 0:02:42.7]} 22...
Rfc8 {[%clk 0:02:17.4]} 23. Qxd4 {[%clk 0:02:41]} 23... Bb5 {[%clk 0:02:16.7]}
24. c4 {[%clk 0:02:37.1]} 24... dxc4 {[%clk 0:02:16.2]} 25. dxc4 {[%clk
0:02:37.1]} 25... Bc6 {[%clk 0:02:16.4]} 26. Bxc6 {[%clk 0:02:33.9]} 26... Rxc6
{[%clk 0:02:17.3]} 27. Qxd7 {[%clk 0:02:33.8]} 1-0